[Event "Gibraltar Amateurs A 2020"]
[Site "Caleta"]
[Date "2020.01.21"]
[Round "2.1"]
[White "Ashwani Kumar Grover"]
[Black "Nash, Damian"]
[Result "1-0"]
[ECO "C44"]
[WhiteElo "1731"]
[BlackElo "1890"]
[Annotator "NA"]
[PlyCount "93"]
[EventDate "2020.01.20"]
[EventType "swiss"]
[EventCountry "GGB"]
[SourceTitle "playchess.com"]
[Source "ChessBase"]
[SourceQuality "1"]
[TimeControl "6600+10"]

1. e4 {[%emt 0:02:13]} Nc6 {[%emt 0:00:00]} 2. Nf3 {[%emt 0:01:26]} e5 {[%emt 0:01:18]} 3. d4 {[%emt 0:00:07]} exd4 {[%emt 0:00:48]} 4. Bc4 {[%emt 0:00:08]} Bb4+ {[%emt 0:05:05]} 5. c3 {[%emt 0:00:34]} dxc3 {[%emt 0:01:26]} 6. bxc3 {[%emt 0:00:06]} Bd6 {[%emt 0:12:29]} 7. O-O {[%emt 0:02:07] C44: Ponziani Opening and Scotch Gambit} Nf6 {[%emt 0:08:46] [#]} (7... Qf6 $14 8. Re1 Ne5 9. Nxe5 Bxe5 10. f4 Bxc3 11. e5 Qc6 12. Bxf7+ Kxf7 13. Qb3+ Ke8 14. Nxc3 Ne7 {1-0 (44) Haraldsson,O (1742)-Chan,Y (1988) Bangkog 2018}) 8. e5 $1 {[%emt 0:01:17]} Bxe5 {[%emt 0:04:03]} 9. Nxe5 {[%emt 0:01:08]} Nxe5 {[%emt 0:02:07]} 10. Re1 {[%emt 0:01:10]} O-O {[%emt 0:10:55]} 11. Rxe5 {[%emt 0:00:11]} d6 {[%emt 0:01:00]} 12. Re1 {[%emt 0:01:10]} Ng4 $146 {[%emt 0:06:57]} ({Predecessor:} 12... d5 13. Bb3 Qd6 14. h3 h6 {1-0 (26) Melaa,S (1685)-Aarvik Hansen,H (1376) Fornebu 2016}) 13. h3 {[%emt 0:07:08]} Ne5 {[%emt 0:07:16]} 14. Bf1 {[%emt 0:02:38]} Be6 {[%emt 0:05:31]} 15. Nd2 {[%emt 0:02:37]} Qf6 {[%emt 0:02:29]} 16. Qh5 {[%emt 0:23:41]} Rae8 {[%emt 0:09:37]} 17. Ne4 {[%emt 0:06:18]} Qg6 18. Qxg6 {[%emt 0:01:41]} fxg6 {[%emt 0:04:45]} 19. Ng3 {[%emt 0:18:19]} a6 $18 {[%emt 0:03:02]} 20. f4 {[%emt 0:06:24]} Nf7 {[%emt 0:04:35]} 21. c4 {[%emt 0:05:25]} b6 {[%emt 0:02:26]} 22. Bd2 {[%emt 0:10:10]} a5 {[%emt 0:01:01]} 23. Rac1 {[%emt 0:01:21]} Nd8 {[%emt 0:05:34]} 24. Bd3 {[%emt 0:02:12]} Nb7 {[%emt 0:01:37]} 25. Rxe6 {[%emt 0:06:26]} Rxe6 {[%emt 0:00:31]} 26. Be4 Nc5 {[%emt 0:06:27]} 27. Bd5 {[%emt 0:00:12]} c6 28. Bxe6+ {[%emt 0:01:05]} Nxe6 29. Be3 {[%emt 0:01:07]} Nxf4 {[%emt 0:01:10]} 30. Bxb6 {[%emt 0:02:31]} a4 {[%emt 0:01:05]} 31. Rd1 {[%emt 0:01:19]} Rb8 {[%emt 0:00:41]} 32. Be3 {[%emt 0:00:47]} g5 {[%emt 0:00:11]} 33. Rxd6 {[%emt 0:00:36]} Rb2 {[%emt 0:00:01]} 34. Rd2 {[%emt 0:00:26]} Rb1+ {[%emt 0:00:09]} 35. Kh2 {[%emt 0:00:11]} Re1 {[%emt 0:00:14]} 36. Bf2 {[%emt 0:00:39]} Rc1 {[%emt 0:00:04]} 37. c5 {[%emt 0:00:19]} a3 {[%emt 0:00:16]} 38. Ne4 {[%emt 0:00:43]} Rb1 {[%emt 0:00:07]} 39. Nxg5 {[%emt 0:00:16]} Rb2 {[%emt 0:00:02]} 40. Be1 {[%emt 0:00:15]} Rxd2 41. Bxd2 {[%emt 0:00:02]} Nd3 {[%emt 0:00:55]} 42. Ne4 {[%emt 0:00:11]} Kf7 {[%emt 0:00:11]} 43. Kg3 {[%emt 0:00:05]} Ke6 {[%emt 0:00:04]} 44. Kf3 {[%emt 0:00:05]} Kd5 {[%emt 0:00:05]} 45. Ke3 {[%emt 0:00:07]} Nb2 {[%emt 0:00:34]} 46. Bc3 {[%emt 0:00:29]} Nd1+ {[%emt 0:00:05]} 47. Kd2 {[%emt 0:00:06]} 1-0

[Event "Gibraltar Amateurs A 2020"]
[Site "Caleta"]
[Date "2020.01.21"]
[Round "2.2"]
[White "Dumont, Andre"]
[Black "Kuenitz, Klaus"]
[Result "0-1"]
[ECO "A11"]
[WhiteElo "1872"]
[BlackElo "1726"]
[Annotator "NA"]
[PlyCount "56"]
[EventDate "2020.01.20"]
[EventType "swiss"]
[EventCountry "GGB"]
[SourceTitle "playchess.com"]
[Source "ChessBase"]
[SourceQuality "1"]
[TimeControl "6600+10"]

1. Nf3 {[%emt 0:00:00]} d5 {[%emt 0:00:50]} 2. e3 {[%emt 0:00:01]} Nf6 {[%emt 0:01:13]} 3. c4 {[%emt 0:00:11]} c6 {[%emt 0:02:19]} 4. b3 {[%emt 0:01:06]} g6 {[%emt 0:01:07]} 5. Bb2 {[%emt 0:02:16]} Bg7 {[%emt 0:01:11]} 6. Nc3 {[%emt 0:06:45]} O-O {[%emt 0:00:26]} 7. Qc2 {[%emt 0:03:31]} Bf5 {[%emt 0:03:34]} 8. d3 {[%emt 0:00:40]} Na6 {[%emt 0:01:48]} 9. Nd4 {[%emt 0:05:57]} Bd7 {[%emt 0:02:59]} 10. cxd5 {[%emt 0:02:34]} cxd5 {[%emt 0:01:19]} 11. Ba3 $2 {[%emt 0:03:26]} (11. Nf3 $11 {and White has nothing to worry.}) 11... Rc8 {[%emt 0:01:51]} 12. Qd2 {[%emt 0:15:35]} Re8 {[%emt 0:05:44]} 13. Ndb5 {[%emt 0:09:23]} Bxb5 {[%emt 0:03:15]} 14. Nxb5 $19 {[%emt 0:00:26]} Ne4 {[%emt 0:08:55]} 15. dxe4 {[%emt 0:00:09]} Bxa1 {[%emt 0:00:34]} 16. exd5 {[%emt 0:01:28]} Nc7 {[%emt 0:03:04]} 17. Bb2 {[%emt 0:06:33]} Bxb2 {[%emt 0:02:53]} 18. Nxc7 {[%emt 0:00:09]} Qxc7 {[%emt 0:00:27]} 19. Qxb2 {[%emt 0:00:25]} Qc1+ {[%emt 0:00:05]} 20. Qxc1 {[%emt 0:00:45]} Rxc1+ {[%emt 0:00:07]} 21. Ke2 {[%emt 0:00:45]} Ra1 {[%emt 0:00:13]} 22. Kf3 {[%emt 0:01:24]} Rc8 {[%emt 0:00:43]} 23. g4 {[%emt 0:00:29]} Rc2 {[%emt 0:02:23]} 24. Bd3 {[%emt 0:00:25]} Rcxa2 {[%emt 0:00:07]} 25. Rxa1 {[%emt 0:00:14]} Rxa1 {[%emt 0:00:18]} 26. e4 {[%emt 0:00:03]} Ra3 {[%emt 0:00:58]} 27. Bc2 {[%emt 0:00:09]} a5 {[%emt 0:00:39]} 28. Kf4 {[%emt 0:00:03]} Ra2 {[%emt 0:00:47]} 0-1

[Event "Gibraltar Amateurs A 2020"]
[Site "Caleta"]
[Date "2020.01.21"]
[Round "2.3"]
[White "Collins, Andrew"]
[Black "Teh, Wee Zhun"]
[Result "1/2-1/2"]
[ECO "B02"]
[WhiteElo "1720"]
[BlackElo "1857"]
[Annotator "NA"]
[PlyCount "49"]
[EventDate "2020.01.20"]
[EventType "swiss"]
[EventCountry "GGB"]
[SourceTitle "playchess.com"]
[Source "ChessBase"]
[SourceQuality "1"]
[TimeControl "6600+10"]

1. e4 {[%emt 0:00:00]} Nf6 {[%emt 0:07:10]} 2. Nc3 {[%emt 0:00:01]} d5 {[%emt 0:00:06]} 3. exd5 {[%emt 0:00:10]} Nxd5 {[%emt 0:00:12]} 4. Nxd5 {[%emt 0:00:37]} Qxd5 {[%emt 0:00:10]} 5. Nf3 {[%emt 0:00:28]} Bg4 {[%emt 0:02:32]} 6. Be2 {[%emt 0:00:18]} Nc6 {[%emt 0:00:18]} 7. O-O {[%emt 0:00:34]} e6 {[%emt 0:01:04] B02: Alekhine's Defence: Chase Variation and lines with early Nc3} 8. c3 {[%emt 0:01:08]} (8. d3 Be7 9. Bf4 Bd6 10. Bxd6 Qxd6 11. Nd2 Bxe2 12. Qxe2 Nd4 13. Qd1 c5 14. Nf3 O-O 15. c3 {0-1 (54) Vaculik,J (2139)-Sergeev,V (2403) Kouty nad Desnou 2019}) 8... Be7 {[%emt 0:02:55]} 9. d4 {[%emt 0:00:20]} O-O {[%emt 0:02:59]} 10. Ne5 {[%emt 0:04:24]} Bxe2 {[%emt 0:06:04]} 11. Nxc6 $146 {[%emt 0:00:05]} ({Predecessor:} 11. Qxe2 $11 {was the only way to keep the balance.} Nxe5 (11... Bf6 12. Bf4 Nxe5 13. Bxe5 Bxe5 14. Qxe5 Qxe5 15. dxe5 Rfd8 {½-½ (59) Sanchez Dengra,B-Gonzalez Santos,I Benidorm 2007}) 12. dxe5) 11... Qxc6 {[%emt 0:03:02]} 12. Qxe2 {[%emt 0:00:04]} b5 {[%emt 0:08:12]} 13. Bf4 {[%emt 0:00:49]} Bf6 {[%emt 0:01:57]} 14. Be5 {[%emt 0:00:42]} Bxe5 {[%emt 0:01:47]} 15. Qxe5 {[%emt 0:00:03]} Rfd8 {[%emt 0:01:22]} 16. Rfe1 {[%emt 0:00:12]} Rd5 {[%emt 0:00:49]} 17. Qe4 {[%emt 0:00:07]} Rad8 {[%emt 0:05:13]} 18. Re3 {[%emt 0:07:08]} Qd6 {[%emt 0:07:12]} 19. Rh3 {[%emt 0:05:45]} h6 {[%emt 0:01:34]} 20. Re1 $17 {[%emt 0:01:03]} c5 {[%emt 0:03:48]} 21. dxc5 {[%emt 0:11:49]} Qxc5 {[%emt 0:00:30]} 22. Rhe3 {[%emt 0:01:07]} Rd2 {[%emt 0:05:36]} 23. R3e2 {[%emt 0:04:05]} Rxe2 {[%emt 0:00:13]} 24. Qxe2 {[%emt 0:00:08]} b4 25. Qd1 {[%emt 0:00:36]} 1/2-1/2

[Event "Gibraltar Amateurs A 2020"]
[Site "Caleta"]
[Date "2020.01.21"]
[Round "2.4"]
[White "O Muireagain, Colm"]
[Black "Nebel, Uwe"]
[Result "1/2-1/2"]
[ECO "C10"]
[WhiteElo "1376"]
[BlackElo "1847"]
[Annotator "NA"]
[PlyCount "73"]
[EventDate "2020.01.20"]
[EventType "swiss"]
[EventCountry "GGB"]
[SourceTitle "playchess.com"]
[Source "ChessBase"]
[SourceQuality "1"]
[TimeControl "6600+10"]

1. e4 {[%emt 0:00:00]} e6 {[%emt 0:00:01]} 2. d4 {[%emt 0:00:00]} d5 {[%emt 0:00:10]} 3. Nd2 {[%emt 0:00:01]} dxe4 {[%emt 0:00:09]} 4. Nxe4 {[%emt 0:00:05]} Bd7 {[%emt 0:00:07]} 5. Nf3 {[%emt 0:01:19]} Bc6 {[%emt 0:00:09]} 6. Ng3 {[%emt 0:01:53]} Nd7 {[%emt 0:01:28]} 7. c3 {[%emt 0:01:03]} Ngf6 {[%emt 0:00:40]} 8. Bd3 {[%emt 0:00:40]} Bxf3 {[%emt 0:02:47]} 9. Qxf3 {[%emt 0:00:13]} c6 {[%emt 0:00:06]} 10. O-O {[%emt 0:00:42]} Be7 {[%emt 0:01:50]} 11. Re1 {[%emt 0:03:02]} O-O {[%emt 0:00:13]} 12. a4 {[%emt 0:03:53] C10: French with 3 Nc3: Unusual Black 3rd moves and 3...dxe4} (12. Bc2 Re8 13. h4 Qa5 14. a4 Rad8 15. b4 Qc7 16. a5 Bd6 17. Bb3 Bxg3 18. fxg3 Nd5 19. Ra2 e5 {0-1 (35) Nepomniachtchi,I (2720)-Gelfand,B (2741) Moscow 2010}) 12... Re8 {[%emt 0:09:54]} 13. a5 {[%emt 0:02:55]} a6 {[%emt 0:00:15]} 14. Bc2 $146 {[%emt 0:05:22]} ({Predecessor:} 14. b4 Nf8 15. Bd2 Ng6 16. Rad1 Bf8 17. Bg5 {½-½ (30) Martinez Denegri,G (2142)-Varela,G (2398) Villa Martelli 2014}) 14... Bd6 {[%emt 0:02:44]} 15. Bf4 {[%emt 0:06:26]} Bc7 {[%emt 0:05:56]} 16. Bxc7 {[%emt 0:00:31]} Qxc7 {[%emt 0:00:06]} 17. Ne4 {[%emt 0:04:30]} Rad8 {[%emt 0:06:46]} 18. Nxf6+ {[%emt 0:06:33]} Nxf6 {[%emt 0:00:15]} 19. Qg3 {[%emt 0:02:23]} Qxg3 {[%emt 0:09:31]} 20. hxg3 {[%emt 0:00:17]} Nd5 {[%emt 0:08:58]} 21. f4 {[%emt 0:05:07]} h6 {[%emt 0:00:43]} 22. Kf2 {[%emt 0:01:34]} Rc8 {[%emt 0:04:39]} 23. Be4 $11 {[%emt 0:09:55]} Red8 {[%emt 0:05:12]} 24. Bxd5 {[%emt 0:06:08]} Rxd5 {[%emt 0:03:25]} 25. b4 {[%emt 0:01:02]} Re8 {[%emt 0:03:19]} 26. Re3 {[%emt 0:01:29]} f6 {[%emt 0:05:04]} 27. Rae1 {[%emt 0:01:41]} Kf7 {[%emt 0:00:48]} 28. g4 {[%emt 0:08:24]} f5 {[%emt 0:04:42]} 29. gxf5 {[%emt 0:05:29]} Rxf5 {[%emt 0:00:07]} 30. Kg3 {[%emt 0:01:51]} Rf6 {[%emt 0:04:43]} 31. Re5 {[%emt 0:01:18]} Rd8 {[%emt 0:00:40]} 32. f5 {[%emt 0:03:27]} Rxf5 {[%emt 0:05:48]} 33. Rxe6 {[%emt 0:00:28]} Rd7 {[%emt 0:00:08]} 34. Re8 Rf6 {[%emt 0:00:10]} 35. R1e3 Kg6 {[%emt 0:00:10]} 36. R8e7 Rf7 {[%emt 0:00:10]} 37. Rxd7 1/2-1/2

[Event "Gibraltar Amateurs A 2020"]
[Site "Caleta"]
[Date "2020.01.21"]
[Round "2.5"]
[White "Zitan, Abdelhay"]
[Black "Olaizola, Miguel"]
[Result "1-0"]
[ECO "C68"]
[WhiteElo "1705"]
[BlackElo "1809"]
[Annotator "NA"]
[PlyCount "72"]
[EventDate "2020.01.20"]
[EventType "swiss"]
[EventCountry "GGB"]
[SourceTitle "playchess.com"]
[Source "ChessBase"]
[SourceQuality "1"]
[TimeControl "6600+10"]

1. e4 {[%emt 0:00:00]} e5 {[%emt 0:01:19]} 2. Nf3 {[%emt 0:00:39]} Nc6 {[%emt 0:00:51]} 3. Bb5 {[%emt 0:00:50]} a6 {[%emt 0:04:58]} 4. Bxc6 {[%emt 0:00:24]} dxc6 {[%emt 0:00:13]} 5. O-O {[%emt 0:00:26]} Bg4 {[%emt 0:01:25]} 6. h3 {[%emt 0:00:22]} Bxf3 {[%emt 0:02:27]} 7. Qxf3 {[%emt 0:00:31]} Qf6 {[%emt 0:01:18]} 8. Qxf6 {[%emt 0:00:52]} Nxf6 {[%emt 0:00:03]} 9. d3 {[%emt 0:00:52]} O-O-O {[%emt 0:00:37]} 10. Be3 {[%emt 0:00:54]} h6 {[%emt 0:01:21]} 11. f4 {[%emt 0:04:07]} exf4 {[%emt 0:01:41]} 12. Bxf4 {[%emt 0:01:10]} Bc5+ {[%emt 0:00:34]} 13. Kh1 {[%emt 0:03:16]} Nh5 {[%emt 0:02:39]} 14. Bh2 {[%emt 0:00:28]} Rd7 {[%emt 0:04:29]} 15. Nc3 {[%emt 0:04:05]} Re8 {[%emt 0:04:49]} 16. Rf5 {[%emt 0:01:38]} Be3 {[%emt 0:08:33]} 17. Rxh5 {[%emt 0:03:18]} g6 {[%emt 0:00:07]} 18. Ra5 {[%emt 0:06:03]} Bd2 {[%emt 0:12:21]} 19. Ra3 {[%emt 0:02:30]} Re6 {[%emt 0:11:41]} 20. Rf1 {[%emt 0:08:04]} Bg5 {[%emt 0:08:16]} 21. Ne2 {[%emt 0:09:00]} Be7 {[%emt 0:13:10]} 22. Rb3 {[%emt 0:08:21]} Bc5 {[%emt 0:02:05]} 23. Bg1 {[%emt 0:05:35]} Bf8 {[%emt 0:04:18]} 24. Ng3 {[%emt 0:08:22]} c5 {[%emt 0:05:45]} 25. Ne2 {[%emt 0:04:29]} b6 {[%emt 0:02:08]} 26. Nc3 {[%emt 0:02:12]} Bg7 {[%emt 0:04:58]} 27. Nd5 {[%emt 0:01:01]} c4 28. dxc4 {[%emt 0:00:10]} Rxe4 29. Nf6 {[%emt 0:00:10]} Bxf6 30. Rxf6 {[%emt 0:00:10]} Re1 31. Rd3 {[%emt 0:00:10]} Rde7 32. Rd2 {[%emt 0:00:10]} Rb1 33. Kh2 {[%emt 0:00:10]} Rxb2 34. a3 {[%emt 0:00:10]} Ra2 35. c5 {[%emt 0:00:10]} bxc5 36. Rxa6 {[%emt 0:00:10]} Re5 1-0

[Event "Gibraltar Amateurs A 2020"]
[Site "Caleta"]
[Date "2020.01.21"]
[Round "2.6"]
[White "D`haluin, Wim"]
[Black "Johansson, Daniel"]
[Result "0-1"]
[ECO "D02"]
[WhiteElo "1686"]
[BlackElo "1859"]
[Annotator "NA"]
[PlyCount "54"]
[EventDate "2020.01.20"]
[EventType "swiss"]
[EventCountry "GGB"]
[SourceTitle "playchess.com"]
[Source "ChessBase"]
[SourceQuality "1"]
[TimeControl "6600+10"]

1. d4 {[%emt 0:02:49]} Nf6 {[%emt 0:00:10]} 2. Nf3 {[%emt 0:00:08]} e6 {[%emt 0:00:42]} 3. Bf4 {[%emt 0:00:48]} d5 {[%emt 0:00:33]} 4. e3 {[%emt 0:00:50]} Bd6 {[%emt 0:00:13]} 5. Bg5 {[%emt 0:00:49]} (5. Bxd6 cxd6 6. c4 O-O 7. Nc3 dxc4 8. Bxc4 d5 9. Bd3 Nc6 10. O-O Qd6 11. Rc1 Bd7 12. Nb5 Qb8 13. a3 Rc8 {1-0 (48) Nabaty,T (2669)-Korobov,A (2699) Israel 2019}) 5... h6 {[%emt 0:00:50]} 6. Bh4 {[%emt 0:00:20] D02: 1 d4 d5 2 Nf3 sidelines, including 2...Nf6 3 g3 and 2...Nf6 3 Bf4} Nbd7 {[%emt 0:01:32]} 7. Nbd2 {[%emt 0:00:51]} O-O {[%emt 0:05:12]} 8. c4 {[%emt 0:00:35]} c6 {[%emt 0:08:53]} 9. c5 {[%emt 0:03:39]} Bc7 $146 {[%emt 0:04:15]} ({Predecessor:} 9... Be7 10. Bd3 Nh7 11. Bg3 Ng5 12. O-O Nxf3+ 13. Nxf3 {1-0 (34) Shein,V (1868)-Hasanov,R Gornozavodsk 2010}) 10. Bd3 {[%emt 0:10:00]} b6 {[%emt 0:04:36]} 11. b4 {[%emt 0:01:07]} a5 {[%emt 0:14:55]} 12. cxb6 {[%emt 0:12:13]} Bxb6 {[%emt 0:06:09]} 13. Ne5 {[%emt 0:04:04]} Qc7 {[%emt 0:20:09]} 14. bxa5 {[%emt 0:06:10]} Bxa5 {[%emt 0:00:44]} 15. Bg3 {[%emt 0:00:30]} Nxe5 {[%emt 0:01:31]} 16. Bxe5 {[%emt 0:00:43]} Qe7 {[%emt 0:00:34]} 17. Rc1 {[%emt 0:08:19]} Nd7 {[%emt 0:03:01]} 18. Bg3 {[%emt 0:09:58]} e5 {[%emt 0:03:31]} 19. dxe5 {[%emt 0:03:17]} Nxe5 {[%emt 0:00:25]} 20. Bxe5 {[%emt 0:01:54]} Qxe5 {[%emt 0:00:10]} 21. Rxc6 {[%emt 0:01:47]} Bd7 {[%emt 0:03:31]} 22. Rc1 {[%emt 0:02:09]} Ba4 {[%emt 0:05:54]} 23. Bc2 $2 {[%emt 0:04:44]} (23. Qe2 Qb2 {[%mdl 64] Double Attack} 24. O-O Bxd2 25. Rc5) 23... Bb5 {[%emt 0:00:51]} 24. Bb3 {[%emt 0:01:01]} d4 {[%emt 0:02:20]} 25. Qf3 $19 {[%emt 0:03:26]} dxe3 {[%emt 0:04:56]} 26. fxe3 Rad8 {[%emt 0:00:10]} 27. Rd1 Rd3 {[%emt 0:00:10]} 0-1

[Event "Gibraltar Amateurs A 2020"]
[Site "Caleta"]
[Date "2020.01.21"]
[Round "2.7"]
[White "Marani, Luca"]
[Black "Longdin, Michael"]
[Result "1/2-1/2"]
[ECO "A80"]
[WhiteElo "1796"]
[BlackElo "1680"]
[Annotator "NA"]
[PlyCount "156"]
[EventDate "2020.01.20"]
[EventType "swiss"]
[EventCountry "GGB"]
[SourceTitle "playchess.com"]
[Source "ChessBase"]
[SourceQuality "1"]
[TimeControl "6600+10"]

1. Nc3 {[%emt 0:05:45]} e6 {[%emt 0:00:18]} 2. d4 {[%emt 0:00:23]} f5 {[%emt 0:00:13]} 3. e4 {[%emt 0:02:05]} fxe4 {[%emt 0:01:20]} 4. Nxe4 {[%emt 0:01:34]} Be7 {[%emt 0:01:06]} 5. Bd3 {[%emt 0:01:10]} d5 {[%emt 0:07:17]} 6. Ng5 {[%emt 0:09:09]} Nf6 {[%emt 0:05:00]} 7. Bxh7 {[%emt 0:04:28]} Nxh7 {[%emt 0:24:38]} 8. Qh5+ {[%emt 0:00:19]} Kd7 {[%emt 0:00:20]} 9. Nf7 {[%emt 0:00:58]} Qe8 {[%emt 0:07:31]} 10. Qg6 {[%emt 0:08:49]} Nf8 {[%emt 0:12:00]} 11. Qxg7 {[%emt 0:04:04]} Rh7 {[%emt 0:01:36]} 12. Ne5+ {[%emt 0:00:48]} Kd8 {[%emt 0:00:45]} 13. Qg8 {[%emt 0:01:17]} Nc6 {[%emt 0:04:08]} 14. Ngf3 {[%emt 0:08:24]} Nxe5 {[%emt 0:08:12]} 15. Nxe5 {[%emt 0:00:14]} Bf6 {[%emt 0:02:58]} 16. Bg5 {[%emt 0:10:59]} Bxg5 {[%emt 0:01:33]} 17. Qxg5+ {[%emt 0:00:06]} Qe7 {[%emt 0:01:19]} 18. Qd2 {[%emt 0:07:40]} Rg7 {[%emt 0:03:21]} 19. O-O-O {[%emt 0:05:23]} Ng6 {[%emt 0:03:29]} 20. Nd3 {[%emt 0:16:54]} Bd7 {[%emt 0:02:51]} 21. Rde1 {[%emt 0:02:52]} c6 {[%emt 0:04:51]} 22. f4 {[%emt 0:02:47]} Qf6 {[%emt 0:03:33]} 23. c3 {[%emt 0:04:07]} Kc7 {[%emt 0:01:03]} 24. Rhf1 {[%emt 0:01:04]} Rag8 {[%emt 0:03:19]} 25. g3 {[%emt 0:00:13]} Ne7 {[%emt 0:02:32]} 26. Rf2 {[%emt 0:00:23]} Nf5 {[%emt 0:00:36]} 27. Rfe2 {[%emt 0:01:22]} Nd6 {[%emt 0:01:03]} 28. Nc5 {[%emt 0:00:41]} Re8 {[%emt 0:02:31]} 29. Qc2 {[%emt 0:01:25]} b6 30. Nd3 {[%emt 0:01:10]} Ne4 {[%emt 0:00:44]} 31. Qa4 {[%emt 0:00:50]} Kb7 {[%emt 0:00:25]} 32. Qb4 {[%emt 0:02:22]} Qe7 {[%emt 0:00:21]} 33. Qb3 {[%emt 0:00:37]} Qd6 {[%emt 0:00:48]} 34. Qc2 {[%emt 0:01:01]} Rgg8 {[%emt 0:00:31]} 35. Ne5 {[%emt 0:00:38]} Rc8 {[%emt 0:00:34]} 36. Kb1 {[%emt 0:01:33]} c5 {[%emt 0:00:26]} 37. dxc5 {[%emt 0:00:36]} Rxc5 {[%emt 0:00:13]} 38. Rd1 {[%emt 0:00:31]} Bb5 {[%emt 0:00:32]} 39. Rxe4 {[%emt 0:00:08]} Rd8 {[%emt 0:00:42]} 40. Red4 {[%emt 0:00:07]} Qc7 {[%emt 0:00:22]} 41. g4 {[%emt 0:00:32]} Rf8 {[%emt 0:00:44]} 42. Qd2 {[%emt 0:00:50]} Qh7+ {[%emt 0:00:21]} 43. Ka1 {[%emt 0:00:18]} Rcc8 {[%emt 0:00:35]} 44. Qf2 {[%emt 0:00:13]} Qh6 {[%emt 0:00:16]} 45. f5 {[%emt 0:00:13]} exf5 {[%emt 0:00:03]} 46. gxf5 {[%emt 0:00:02]} Qf6 {[%emt 0:00:07]} 47. Qf4 {[%emt 0:00:19]} Rce8 {[%emt 0:00:10]} 48. Ng4 {[%emt 0:00:08]} Qxf5 {[%emt 0:00:18]} 49. Qxf5 {[%emt 0:00:07]} Rxf5 {[%emt 0:00:02]} 50. a4 {[%emt 0:00:17]} Bc6 {[%emt 0:00:03]} 51. h4 {[%emt 0:00:18]} Rh8 {[%emt 0:00:16]} 52. Ne3 {[%emt 0:00:07]} Rf2 {[%emt 0:00:08]} 53. Rh1 {[%emt 0:00:04]} Rh5 {[%emt 0:00:03]} 54. Rhd1 {[%emt 0:00:04]} Rh2 {[%emt 0:00:08]} 55. Nxd5 {[%emt 0:00:06]} Bxd5 {[%emt 0:00:02]} 56. Rxd5 {[%emt 0:00:02]} Rxd5 {[%emt 0:00:04]} 57. Rxd5 {[%emt 0:00:03]} Rxh4 {[%emt 0:00:01]} 58. b4 {[%emt 0:00:10]} Rh2 {[%emt 0:00:04]} 59. Rd1 {[%emt 0:00:07]} Kc6 {[%emt 0:00:04]} 60. Rb1 {[%emt 0:00:06]} Kd5 {[%emt 0:00:03]} 61. Rb2 {[%emt 0:00:03]} Rh1+ {[%emt 0:00:03]} 62. Ka2 {[%emt 0:00:03]} Kc4 {[%emt 0:00:03]} 63. Rc2 {[%emt 0:00:03]} Rh3 {[%emt 0:00:03]} 64. Kb2 {[%emt 0:00:02]} a6 {[%emt 0:00:04]} 65. a5 {[%emt 0:00:10]} b5 {[%emt 0:00:03]} 66. Rf2 {[%emt 0:00:09]} Rh6 {[%emt 0:00:22]} 67. Kc2 {[%emt 0:00:06]} Rd6 {[%emt 0:00:04]} 68. Rf4+ {[%emt 0:00:04]} Kd5 {[%emt 0:00:05]} 69. Rd4+ {[%emt 0:00:03]} Ke5 {[%emt 0:00:02]} 70. Rxd6 {[%emt 0:00:04]} Kxd6 {[%emt 0:00:02]} 71. Kd3 {[%emt 0:00:05]} Kd5 {[%emt 0:00:02]} 72. Kd2 {[%emt 0:00:30]} Kc4 {[%emt 0:00:09]} 73. Kc2 {[%emt 0:00:10]} Kd5 {[%emt 0:00:09]} 74. Kb3 {[%emt 0:00:02]} Kd6 {[%emt 0:00:55]} 75. c4 {[%emt 0:00:43]} bxc4+ {[%emt 0:00:27]} 76. Kxc4 {[%emt 0:00:02]} Kc6 {[%emt 0:00:01]} 77. b5+ {[%emt 0:00:21]} axb5+ {[%emt 0:00:05]} 78. Kb4 {[%emt 0:00:01]} Kb7 {[%emt 0:00:00]} 1/2-1/2

[Event "Gibraltar Amateurs A 2020"]
[Site "Caleta"]
[Date "2020.01.21"]
[Round "2.8"]
[White "Dennis, Nigel W"]
[Black "Poggio, Freddie"]
[Result "1-0"]
[ECO "B84"]
[WhiteElo "1784"]
[BlackElo "1680"]
[Annotator "NA"]
[PlyCount "67"]
[EventDate "2020.01.20"]
[EventType "swiss"]
[EventCountry "GGB"]
[SourceTitle "playchess.com"]
[Source "ChessBase"]
[SourceQuality "1"]
[TimeControl "6600+10"]

1. e4 {[%emt 0:00:00]} c5 {[%emt 0:00:02]} 2. Nf3 {[%emt 0:00:02]} d6 {[%emt 0:00:27]} 3. d4 {[%emt 0:00:10]} cxd4 {[%emt 0:00:06]} 4. Nxd4 {[%emt 0:00:06]} Nf6 {[%emt 0:00:11]} 5. Nc3 {[%emt 0:00:04]} a6 {[%emt 0:00:11]} 6. Be2 {[%emt 0:00:15]} Nc6 {[%emt 0:00:50]} 7. O-O {[%emt 0:00:16]} e6 {[%emt 0:01:23]} 8. f4 {[%emt 0:01:47]} Qb6 {[%emt 0:02:15]} 9. Be3 {[%emt 0:04:18]} e5 {[%emt 0:00:42]} 10. Nf5 {[%emt 0:01:23]} Qc7 {[%emt 0:04:15]} 11. Ng3 {[%emt 0:01:35]} Be7 {[%emt 0:01:03]} 12. Nd5 {[%emt 0:04:49]} Nxd5 {[%emt 0:05:01]} 13. exd5 {[%emt 0:00:19]} exf4 {[%emt 0:01:01]} 14. Rxf4 {[%emt 0:06:08]} Ne5 {[%emt 0:02:24]} 15. Rf1 {[%emt 0:06:30]} O-O {[%emt 0:03:32]} 16. a4 {[%emt 0:05:35]} Bd7 {[%emt 0:03:55]} 17. Qd4 {[%emt 0:06:32]} Qc5 {[%emt 0:06:14]} 18. Qd2 {[%emt 0:04:44]} Qc7 {[%emt 0:06:47]} 19. b3 {[%emt 0:02:01]} b5 {[%emt 0:05:10]} 20. a5 {[%emt 0:04:06]} Rac8 {[%emt 0:00:11]} 21. Rfc1 {[%emt 0:02:23]} Qc3 {[%emt 0:04:33]} 22. Qxc3 {[%emt 0:00:15]} Rxc3 {[%emt 0:00:26]} 23. Bd4 {[%emt 0:01:09]} Rcc8 {[%emt 0:02:00]} 24. c4 {[%emt 0:01:12]} Bf6 {[%emt 0:01:22]} 25. Kf1 {[%emt 0:04:10]} bxc4 {[%emt 0:02:49]} 26. bxc4 {[%emt 0:01:04]} Bg4 {[%emt 0:00:30]} 27. Ne4 {[%emt 0:04:09]} Bxe2+ {[%emt 0:02:15]} 28. Kxe2 {[%emt 0:00:09]} Be7 {[%emt 0:00:32]} 29. c5 {[%emt 0:01:04]} Ng6 {[%emt 0:02:06]} 30. cxd6 {[%emt 0:02:11]} Rxc1 {[%emt 0:02:31]} 31. dxe7 {[%emt 0:04:26]} Re8 {[%emt 0:02:30]} 32. Rxc1 {[%emt 0:00:27]} Nf4+ {[%emt 0:00:08]} 33. Kf3 {[%emt 0:00:57]} Nxd5 {[%emt 0:00:38]} 34. Nd6 {[%emt 0:00:19]} 1-0